[Event "*** Titled Tuesday 3|2 Blitz"]
[Site "Chess.com"]
[Date "2016.09.06"]
[Round "7"]
[White "DanielNaroditsky"]
[Black "wonderfultime"]
[Result "0-1"]
[WhiteElo "2708"]
[BlackElo "2685"]
[TimeControl "180+2"]
[EndTime "18:25:03 PDT"]
[Termination "wonderfultime won by resignation"]

1. d4 {[%clk 0:03:02]} 1... d5 {[%clk 0:03:00.6]} 2. c4 {[%clk 0:03:01.6]} 2...
c6 {[%clk 0:03:01.8]} 3. Nf3 {[%clk 0:03:01.3]} 3... Nf6 {[%clk 0:03:02.5]} 4.
Nc3 {[%clk 0:03:01.6]} 4... dxc4 {[%clk 0:03:03.8]} 5. a4 {[%clk 0:03:02.2]}
5... Bf5 {[%clk 0:03:04.7]} 6. e3 {[%clk 0:03:03.7]} 6... e6 {[%clk 0:03:05.8]}
7. Bxc4 {[%clk 0:03:05.2]} 7... Bb4 {[%clk 0:03:07.3]} 8. O-O {[%clk 0:03:05.2]}
8... O-O {[%clk 0:03:08.9]} 9. Qe2 {[%clk 0:03:05.5]} 9... Nbd7 {[%clk
0:03:10.3]} 10. e4 {[%clk 0:03:06.7]} 10... Bg6 {[%clk 0:03:09.6]} 11. Bd3
{[%clk 0:03:07.9]} 11... Bh5 {[%clk 0:03:10.9]} 12. e5 {[%clk 0:03:08.7]} 12...
Nd5 {[%clk 0:03:12.4]} 13. Nxd5 {[%clk 0:03:09.2]} 13... cxd5 {[%clk 0:03:14.3]}
14. Qe3 {[%clk 0:03:09.9]} 14... Re8 {[%clk 0:03:15.9]} 15. Ng5 {[%clk
0:03:10.6]} 15... Bg6 {[%clk 0:03:17.2]} 16. Bxg6 {[%clk 0:03:11.7]} 16... fxg6
{[%clk 0:03:19.1]} 17. a5 {[%clk 0:03:13.2]} 17... Nf8 {[%clk 0:03:14.4]} 18.
Qb3 {[%clk 0:03:00.1]} 18... Be7 {[%clk 0:03:10.8]} 19. f4 {[%clk 0:02:58]}
19... Qd7 {[%clk 0:03:06.6]} 20. Bd2 {[%clk 0:02:50.6]} 20... Rac8 {[%clk
0:03:05.6]} 21. Nf3 {[%clk 0:02:51]} 21... Rc4 {[%clk 0:03:02.9]} 22. Bc3 {[%clk
0:02:51.6]} 22... Rec8 {[%clk 0:02:58.7]} 23. Nd2 {[%clk 0:02:52.5]} 23... R4c6
{[%clk 0:03:00]} 24. g4 {[%clk 0:02:49.2]} 24... Kh8 {[%clk 0:02:44.4]} 25. Rf3
{[%clk 0:02:50]} 25... b5 {[%clk 0:02:31.2]} 26. axb6 {[%clk 0:02:23.9]} 26...
axb6 {[%clk 0:02:27.6]} 27. Nf1 {[%clk 0:02:22.2]} 27... Rb8 {[%clk 0:01:15.1]}
28. Ne3 {[%clk 0:02:19.3]} 28... b5 {[%clk 0:01:16.5]} 29. Bb4 {[%clk
0:02:11.9]} 29... h6 {[%clk 0:01:04.7]} 30. Raf1 {[%clk 0:02:10]} 30... Qa7
{[%clk 0:00:32.1]} 31. Bxe7 {[%clk 0:01:52.8]} 31... Qxe7 {[%clk 0:00:34]} 32.
f5 {[%clk 0:01:46.6]} 32... gxf5 {[%clk 0:00:35.9]} 33. gxf5 {[%clk 0:01:46.6]}
33... Qg5+ {[%clk 0:00:36.8]} 34. Rg3 {[%clk 0:01:46.5]} 34... Qh4 {[%clk
0:00:30.6]} 35. Qd3 {[%clk 0:01:46]} 35... Rd8 {[%clk 0:00:18.4]} 36. f6 {[%clk
0:01:35.7]} 36... g5 {[%clk 0:00:19.5]} 37. f7 {[%clk 0:01:24.7]} 37... Rdc8
{[%clk 0:00:18.9]} 38. Ng4 {[%clk 0:01:01.3]} 38... Rc1 {[%clk 0:00:18]} 39. Qf3
{[%clk 0:00:59.6]} 39... Rxf1+ {[%clk 0:00:17.2]} 40. Qxf1 {[%clk 0:00:59.6]}
40... Qh5 {[%clk 0:00:18.2]} 41. Qd3 {[%clk 0:00:44.2]} 41... Kg7 {[%clk
0:00:14.6]} 42. Nf6 {[%clk 0:00:39.1]} 42... Rc1+ {[%clk 0:00:14.2]} 43. Kg2
{[%clk 0:00:37.6]} 43... Qg6 {[%clk 0:00:15.5]} 44. Qxg6+ {[%clk 0:00:34.3]}
44... Nxg6 {[%clk 0:00:17.4]} 45. Rb3 {[%clk 0:00:33.5]} 45... Kxf7 {[%clk
0:00:16.2]} 46. Rxb5 {[%clk 0:00:33.8]} 46... Nh4+ {[%clk 0:00:17.8]} 47. Kf2
{[%clk 0:00:29.3]} 47... Nf5 {[%clk 0:00:19.7]} 48. Rb8 {[%clk 0:00:23.7]} 48...
Rc2+ {[%clk 0:00:19.2]} 49. Ke1 {[%clk 0:00:22.9]} 49... Nxd4 {[%clk 0:00:21.1]}
50. b4 {[%clk 0:00:21.9]} 50... Rb2 {[%clk 0:00:21.2]} 51. Kd1 {[%clk
0:00:21.8]} 51... Nc6 {[%clk 0:00:19.9]} 52. Rb7+ {[%clk 0:00:21.3]} 52... Kg6
{[%clk 0:00:21.5]} 53. b5 {[%clk 0:00:22.2]} 53... Nxe5 {[%clk 0:00:22.8]} 54.
Ne8 {[%clk 0:00:22]} 54... Nc4 {[%clk 0:00:22.8]} 55. Kc1 {[%clk 0:00:19.5]}
55... Rb4 {[%clk 0:00:21.7]} 56. Nc7 {[%clk 0:00:18.9]} 56... Kf5 {[%clk
0:00:22.2]} 57. Na6 {[%clk 0:00:19.2]} 57... Rb3 {[%clk 0:00:23.5]} 58. Kc2
{[%clk 0:00:17.6]} 58... Rxb5 {[%clk 0:00:24.2]} 0-1

[Event "*** Titled Tuesday 3|2 Blitz"]
[Site "Chess.com"]
[Date "2016.09.06"]
[Round "7"]
[White "theprosecution1"]
[Black "andryusha"]
[Result "0-1"]
[WhiteElo "2426"]
[BlackElo "2200"]
[TimeControl "180+2"]
[EndTime "18:25:19 PDT"]
[Termination "andryusha won on time"]

1. d4 {[%clk 0:03:02]} 1... Nf6 {[%clk 0:02:58.6]} 2. Nf3 {[%clk 0:03:01]} 2...
g6 {[%clk 0:03:00]} 3. c4 {[%clk 0:03:00.6]} 3... Bg7 {[%clk 0:03:01.3]} 4. Nc3
{[%clk 0:03:02.5]} 4... O-O {[%clk 0:03:02.2]} 5. e4 {[%clk 0:03:03.4]} 5... d6
{[%clk 0:03:03.6]} 6. Be2 {[%clk 0:03:04.7]} 6... Nc6 {[%clk 0:03:04.4]} 7. d5
{[%clk 0:03:04.8]} 7... Nb8 {[%clk 0:03:05.7]} 8. O-O {[%clk 0:03:04.8]} 8...
Bg4 {[%clk 0:03:06.7]} 9. Re1 {[%clk 0:02:43.7]} 9... c6 {[%clk 0:02:58.2]} 10.
h3 {[%clk 0:02:35.4]} 10... Bxf3 {[%clk 0:02:59.1]} 11. Bxf3 {[%clk 0:02:37.3]}
11... Nbd7 {[%clk 0:03:00.6]} 12. Bf4 {[%clk 0:02:36.2]} 12... a6 {[%clk
0:02:53.4]} 13. Be2 {[%clk 0:02:29.3]} 13... Nc5 {[%clk 0:02:39.9]} 14. Bf1
{[%clk 0:02:29.1]} 14... Nh5 {[%clk 0:02:34.8]} 15. Bd2 {[%clk 0:02:25.4]} 15...
e6 {[%clk 0:02:22]} 16. dxc6 {[%clk 0:02:22.3]} 16... bxc6 {[%clk 0:02:21.6]}
17. Qc2 {[%clk 0:02:23.9]} 17... Qh4 {[%clk 0:02:16.7]} 18. Rad1 {[%clk
0:02:09]} 18... a5 {[%clk 0:01:48.5]} 19. Bc1 {[%clk 0:01:59.9]} 19... Rad8
{[%clk 0:01:33.4]} 20. g3 {[%clk 0:01:54.5]} 20... Qf6 {[%clk 0:01:26.6]} 21.
Bg2 {[%clk 0:01:51.5]} 21... e5 {[%clk 0:00:59.6]} 22. h4 {[%clk 0:01:50.2]}
22... Ne6 {[%clk 0:00:59.3]} 23. Ne2 {[%clk 0:01:41.3]} 23... h6 {[%clk
0:00:57.2]} 24. Rd3 {[%clk 0:01:35.4]} 24... c5 {[%clk 0:00:53.3]} 25. Red1
{[%clk 0:01:32.1]} 25... Nd4 {[%clk 0:00:53.3]} 26. Nxd4 {[%clk 0:01:32.4]}
26... cxd4 {[%clk 0:00:46.4]} 27. Ra3 {[%clk 0:01:30.8]} 27... Ra8 {[%clk
0:00:46.4]} 28. Rdd3 {[%clk 0:01:28.5]} 28... Qd8 {[%clk 0:00:44.9]} 29. Rdb3
{[%clk 0:01:26.1]} 29... Qc7 {[%clk 0:00:44]} 30. Rb5 {[%clk 0:01:19.6]} 30...
Rfc8 {[%clk 0:00:38.1]} 31. Bf1 {[%clk 0:01:20.7]} 31... Bf8 {[%clk 0:00:38.7]}
32. Ra4 {[%clk 0:01:18.1]} 32... Nf6 {[%clk 0:00:34.7]} 33. Bd2 {[%clk
0:01:13.2]} 33... Qc6 {[%clk 0:00:31.7]} 34. Qb3 {[%clk 0:00:56.6]} 34... Nxe4
{[%clk 0:00:27.1]} 35. Be1 {[%clk 0:00:58]} 35... Nc5 {[%clk 0:00:26.3]} 36. Qc2
{[%clk 0:00:45.1]} 36... d3 {[%clk 0:00:22.7]} 37. Bxd3 {[%clk 0:00:39.4]} 37...
Nxa4 {[%clk 0:00:10.2]} 38. Qxa4 {[%clk 0:00:41.3]} 38... e4 {[%clk 0:00:09.7]}
39. Bf1 {[%clk 0:00:37.6]} 39... Bg7 {[%clk 0:00:10.4]} 40. Qd1 {[%clk
0:00:34.5]} 40... a4 {[%clk 0:00:09]} 41. Rd5 {[%clk 0:00:33.5]} 41... Bxb2
{[%clk 0:00:09.2]} 42. Rxd6 {[%clk 0:00:33.7]} 42... Qc5 {[%clk 0:00:08.5]} 43.
Rd5 {[%clk 0:00:27.4]} 43... Qe7 {[%clk 0:00:08.6]} 44. Bd2 {[%clk 0:00:23.8]}
44... Bg7 {[%clk 0:00:07.8]} 45. Be3 {[%clk 0:00:24]} 45... a3 {[%clk
0:00:07.7]} 46. Rd7 {[%clk 0:00:23.7]} 46... Qe6 {[%clk 0:00:08]} 47. Rd6 {[%clk
0:00:23.3]} 47... Qe5 {[%clk 0:00:08]} 48. Bf4 {[%clk 0:00:21.3]} 48... Qb2
{[%clk 0:00:08.9]} 49. Rd7 {[%clk 0:00:19.2]} 49... Qxa2 {[%clk 0:00:09.7]} 50.
Qd5 {[%clk 0:00:20.6]} 50... Rf8 {[%clk 0:00:09.5]} 51. Qxe4 {[%clk 0:00:18.7]}
51... Qb2 {[%clk 0:00:09.1]} 52. h5 {[%clk 0:00:16.8]} 52... g5 {[%clk
0:00:09.2]} 53. Bd3 {[%clk 0:00:17.3]} 53... f5 {[%clk 0:00:09.4]} 54. Qe6+
{[%clk 0:00:15.6]} 54... Kh8 {[%clk 0:00:10.1]} 55. Be3 {[%clk 0:00:10.4]} 55...
a2 {[%clk 0:00:10.2]} 56. Bd4 {[%clk 0:00:04]} 56... Qxd4 {[%clk 0:00:10.4]} 57.
Bxf5 {[%clk 0:00:02.8]} 57... a1=Q+ {[%clk 0:00:11]} 0-1

[Event "*** Titled Tuesday 3|2 Blitz"]
[Site "Chess.com"]
[Date "2016.09.06"]
[Round "7"]
[White "gmjoey1"]
[Black "putinwarrior"]
[Result "0-1"]
[WhiteElo "2507"]
[BlackElo "2374"]
[TimeControl "180+2"]
[EndTime "18:25:33 PDT"]
[Termination "putinwarrior won by resignation"]

1. e4 {[%clk 0:03:01.9]} 1... Nf6 {[%clk 0:03:00.7]} 2. Nc3 {[%clk 0:03:00.3]}
2... d5 {[%clk 0:03:00.4]} 3. exd5 {[%clk 0:02:59.9]} 3... Nxd5 {[%clk
0:03:02.3]} 4. Bc4 {[%clk 0:03:00.8]} 4... c6 {[%clk 0:03:02.7]} 5. Qf3 {[%clk
0:03:00.4]} 5... e6 {[%clk 0:03:03.5]} 6. d4 {[%clk 0:03:00.5]} 6... Qf6 {[%clk
0:03:05]} 7. Qxf6 {[%clk 0:02:38.1]} 7... Nxf6 {[%clk 0:03:02.3]} 8. Nf3 {[%clk
0:02:39.6]} 8... Bd6 {[%clk 0:03:02.4]} 9. a4 {[%clk 0:02:38.1]} 9... Nbd7
{[%clk 0:03:01]} 10. a5 {[%clk 0:02:38.5]} 10... Rb8 {[%clk 0:03:01.6]} 11. O-O
{[%clk 0:02:38.7]} 11... b5 {[%clk 0:02:59.8]} 12. axb6 {[%clk 0:02:39.3]} 12...
axb6 {[%clk 0:03:01.2]} 13. Bd3 {[%clk 0:02:32]} 13... h6 {[%clk 0:03:00.6]} 14.
Ne4 {[%clk 0:02:29.5]} 14... Nxe4 {[%clk 0:03:00.8]} 15. Bxe4 {[%clk 0:02:31]}
15... Bb7 {[%clk 0:03:02.1]} 16. Ra7 {[%clk 0:02:29.4]} 16... Kd8 {[%clk
0:03:00.6]} 17. c4 {[%clk 0:02:22.6]} 17... Kc7 {[%clk 0:02:53.4]} 18. Rd1
{[%clk 0:01:44.3]} 18... Ra8 {[%clk 0:02:52.3]} 19. Rxa8 {[%clk 0:01:43.3]}
19... Rxa8 {[%clk 0:02:53.3]} 20. Bd2 {[%clk 0:01:39.8]} 20... Ra4 {[%clk
0:02:33.8]} 21. Bd3 {[%clk 0:01:15.1]} 21... c5 {[%clk 0:02:34.2]} 22. Bc3
{[%clk 0:01:15]} 22... Bxf3 {[%clk 0:02:32.2]} 23. gxf3 {[%clk 0:01:16.9]} 23...
cxd4 {[%clk 0:02:31.2]} 24. Bxd4 {[%clk 0:01:18]} 24... Be5 {[%clk 0:02:30.6]}
25. b3 {[%clk 0:01:04.9]} 25... Ra3 {[%clk 0:02:26.7]} 26. Bc2 {[%clk 0:01:04]}
26... Bxd4 {[%clk 0:02:24.7]} 27. Rxd4 {[%clk 0:01:05.9]} 27... Ra2 {[%clk
0:02:15.7]} 28. Bd1 {[%clk 0:01:04]} 28... Ne5 {[%clk 0:01:41.4]} 29. Kg2 {[%clk
0:00:59.7]} 29... Nc6 {[%clk 0:01:39.5]} 30. Rd3 {[%clk 0:00:45.2]} 30... Nb4
{[%clk 0:01:39.8]} 31. Rd4 {[%clk 0:00:44.1]} 31... e5 {[%clk 0:01:40.1]} 32.
Re4 {[%clk 0:00:42.5]} 32... Rd2 {[%clk 0:01:40.7]} 33. Be2 {[%clk 0:00:41.5]}
33... Kd6 {[%clk 0:01:37.3]} 34. Kf1 {[%clk 0:00:42.1]} 34... f5 {[%clk
0:01:35.2]} 35. Re3 {[%clk 0:00:42.2]} 35... Nc2 {[%clk 0:01:34.5]} 36. Rd3+
{[%clk 0:00:34.2]} 36... Rxd3 {[%clk 0:01:35.4]} 37. Bxd3 {[%clk 0:00:36.1]}
37... Nd4 {[%clk 0:01:32.5]} 38. b4 {[%clk 0:00:37.3]} 38... Nxf3 {[%clk
0:01:28.6]} 39. Bxf5 {[%clk 0:00:32]} 39... Nd2+ {[%clk 0:01:27.2]} 40. Kg2
{[%clk 0:00:33.1]} 40... Nxc4 {[%clk 0:01:29.1]} 41. Kg3 {[%clk 0:00:34.2]}
41... Ke7 {[%clk 0:01:14.4]} 42. Bd3 {[%clk 0:00:23.7]} 42... Nd6 {[%clk
0:01:07.9]} 43. f4 {[%clk 0:00:24.9]} 43... e4 {[%clk 0:01:08.6]} 44. Be2 {[%clk
0:00:24.3]} 44... Ke6 {[%clk 0:01:09.2]} 45. Kg4 {[%clk 0:00:24.8]} 45... g6
{[%clk 0:01:09.1]} 46. h4 {[%clk 0:00:24.7]} 46... Nf5 {[%clk 0:01:06.3]} 47.
Ba6 {[%clk 0:00:25]} 47... Ne3+ {[%clk 0:01:04.8]} 48. Kg3 {[%clk 0:00:24.3]}
48... Nc2 {[%clk 0:01:06.3]} 49. Bb7 {[%clk 0:00:21.5]} 49... Nxb4 {[%clk
0:00:49.5]} 50. Bxe4 {[%clk 0:00:22.2]} 50... Kf6 {[%clk 0:00:51.2]} 51. h5
{[%clk 0:00:23.7]} 51... g5 {[%clk 0:00:46.7]} 52. Kg4 {[%clk 0:00:20.7]} 52...
gxf4 {[%clk 0:00:45.6]} 53. Kxf4 {[%clk 0:00:22.6]} 53... Na6 {[%clk 0:00:46.4]}
54. Bd3 {[%clk 0:00:23]} 54... Nc5 {[%clk 0:00:47.7]} 55. Be2 {[%clk 0:00:23.7]}
55... Nd7 {[%clk 0:00:48]} 56. Ke4 {[%clk 0:00:23.5]} 56... Ne5 {[%clk
0:00:48.4]} 57. Kd5 {[%clk 0:00:22.7]} 57... Kf5 {[%clk 0:00:33.7]} 58. Bd1
{[%clk 0:00:23]} 58... Ng4 {[%clk 0:00:34.4]} 59. Kc6 {[%clk 0:00:22.7]} 59...
Kg5 {[%clk 0:00:35.9]} 60. Kxb6 {[%clk 0:00:22.8]} 60... Kxh5 {[%clk 0:00:37.4]}
61. Kc5 {[%clk 0:00:24.7]} 61... Kg5 {[%clk 0:00:37.8]} 62. Kd4 {[%clk
0:00:26.2]} 62... Kf4 {[%clk 0:00:39.4]} 63. Be2 {[%clk 0:00:18.4]} 63... h5
{[%clk 0:00:38]} 64. Bf1 {[%clk 0:00:19.9]} 64... h4 {[%clk 0:00:39.1]} 65. Kd3
{[%clk 0:00:19.4]} 65... Kf3 {[%clk 0:00:37.9]} 66. Bh3 {[%clk 0:00:18.6]} 66...
Nf2+ {[%clk 0:00:38.6]} 67. Kd2 {[%clk 0:00:18.5]} 67... Nxh3 {[%clk 0:00:39.3]}
0-1

[Event "*** Titled Tuesday 3|2 Blitz"]
[Site "Chess.com"]
[Date "2016.09.06"]
[Round "7"]
[White "danir29"]
[Black "dusanacns"]
[Result "0-1"]
[WhiteElo "2414"]
[BlackElo "2557"]
[TimeControl "180+2"]
[EndTime "18:25:36 PDT"]
[Termination "dusanacns won by resignation"]

1. d4 {[%clk 0:03:01.9]} 1... d6 {[%clk 0:02:58.7]} 2. e4 {[%clk 0:02:55.3]}
2... Nf6 {[%clk 0:02:59.5]} 3. Nc3 {[%clk 0:02:56.2]} 3... e5 {[%clk 0:03:01.1]}
4. Nf3 {[%clk 0:02:57]} 4... exd4 {[%clk 0:03:02.5]} 5. Nxd4 {[%clk 0:02:57.4]}
5... Be7 {[%clk 0:03:04.2]} 6. Bf4 {[%clk 0:02:57.8]} 6... O-O {[%clk
0:03:03.9]} 7. Qd2 {[%clk 0:02:59.1]} 7... a6 {[%clk 0:03:05.5]} 8. O-O-O {[%clk
0:02:58.9]} 8... b5 {[%clk 0:03:06.8]} 9. f3 {[%clk 0:02:59.9]} 9... c5 {[%clk
0:03:07.3]} 10. Nde2 {[%clk 0:02:57.7]} 10... Nc6 {[%clk 0:03:00.2]} 11. Kb1
{[%clk 0:02:49.2]} 11... b4 {[%clk 0:02:25.4]} 12. Nd5 {[%clk 0:02:47]} 12...
Nxd5 {[%clk 0:02:26.1]} 13. exd5 {[%clk 0:02:39.6]} 13... Na5 {[%clk 0:02:20]}
14. Ng3 {[%clk 0:02:37.4]} 14... c4 {[%clk 0:02:02.8]} 15. Qxb4 {[%clk
0:02:17.9]} 15... Qc7 {[%clk 0:01:42.6]} 16. Ne4 {[%clk 0:02:13.6]} 16... Rd8
{[%clk 0:01:30.1]} 17. Bd2 {[%clk 0:02:06.6]} 17... Nb7 {[%clk 0:01:19.2]} 18.
Qxc4 {[%clk 0:02:06]} 18... Qb8 {[%clk 0:01:20.6]} 19. Bc3 {[%clk 0:02:04.5]}
19... Bf5 {[%clk 0:01:16]} 20. Qd4 {[%clk 0:02:03.5]} 20... f6 {[%clk
0:01:13.9]} 21. Bd3 {[%clk 0:02:02]} 21... Kh8 {[%clk 0:01:14.3]} 22. g4 {[%clk
0:01:59.8]} 22... Bg6 {[%clk 0:01:11]} 23. h4 {[%clk 0:01:59.9]} 23... Nc5
{[%clk 0:01:12.5]} 24. h5 {[%clk 0:01:58.9]} 24... Bxe4 {[%clk 0:01:11.7]} 25.
Bxe4 {[%clk 0:01:59.2]} 25... h6 {[%clk 0:01:13.1]} 26. Bf5 {[%clk 0:01:58.3]}
26... Qb5 {[%clk 0:01:12]} 27. b3 {[%clk 0:01:56.7]} 27... Rdb8 {[%clk 0:01:09]}
28. Bb2 {[%clk 0:01:54.9]} 28... a5 {[%clk 0:01:08.3]} 29. Rhe1 {[%clk
0:01:53.2]} 29... Ra7 {[%clk 0:01:04.8]} 30. a4 {[%clk 0:01:50]} 30... Qa6
{[%clk 0:00:57.4]} 31. Qe3 {[%clk 0:01:25.5]} 31... Nxa4 {[%clk 0:00:53]} 32.
Bd4 {[%clk 0:01:18.7]} 32... Rab7 {[%clk 0:00:52.3]} 33. Re2 {[%clk 0:01:15.2]}
33... Qc4 {[%clk 0:00:30.9]} 34. Ka2 {[%clk 0:01:15.3]} 34... Qxd5 {[%clk
0:00:29.7]} 35. Bxf6 {[%clk 0:01:08.9]} 35... Bxf6 {[%clk 0:00:15.5]} 36. Rxd5
{[%clk 0:01:06.7]} 36... Nc3+ {[%clk 0:00:15.5]} 37. Ka3 {[%clk 0:01:04.8]}
37... Nb1+ {[%clk 0:00:15]} 38. Ka2 {[%clk 0:00:57.9]} 38... Nc3+ {[%clk
0:00:16]} 39. Qxc3 {[%clk 0:00:57.3]} 39... Bxc3 {[%clk 0:00:16.6]} 40. Rd3
{[%clk 0:00:51.5]} 40... Be5 {[%clk 0:00:17.8]} 41. Re4 {[%clk 0:00:47.4]} 41...
Rc7 {[%clk 0:00:18.3]} 42. Kb1 {[%clk 0:00:41.8]} 42... Kg8 {[%clk 0:00:18.6]}
43. f4 {[%clk 0:00:42.4]} 43... Bf6 {[%clk 0:00:16.7]} 44. Rde3 {[%clk
0:00:43.8]} 44... Kf8 {[%clk 0:00:14.3]} 45. Bg6 {[%clk 0:00:45]} 45... Re7
{[%clk 0:00:14.5]} 46. Rxe7 {[%clk 0:00:44]} 46... Bxe7 {[%clk 0:00:15.8]} 47.
Re4 {[%clk 0:00:45.3]} 47... d5 {[%clk 0:00:12.1]} 48. Rd4 {[%clk 0:00:45.3]}
48... Rd8 {[%clk 0:00:11.1]} 49. Ka2 {[%clk 0:00:40.5]} 49... Bc5 {[%clk
0:00:10.5]} 50. Rd3 {[%clk 0:00:39.8]} 50... Ke7 {[%clk 0:00:09]} 51. g5 {[%clk
0:00:40.6]} 51... Kd6 {[%clk 0:00:08.9]} 52. Bf7 {[%clk 0:00:39.9]} 52... Kc6
{[%clk 0:00:09.3]} 53. f5 {[%clk 0:00:35.6]} 53... hxg5 {[%clk 0:00:08.7]} 54.
Rg3 {[%clk 0:00:32.7]} 54... Be7 {[%clk 0:00:09.5]} 55. c4 {[%clk 0:00:32.2]}
55... d4 {[%clk 0:00:08.4]} 56. Bd5+ {[%clk 0:00:32.7]} 56... Kd6 {[%clk
0:00:09.9]} 57. Rg2 {[%clk 0:00:33.5]} 57... Bf6 {[%clk 0:00:10.9]} 58. Kb1
{[%clk 0:00:34.3]} 58... Re8 {[%clk 0:00:11]} 59. Kc2 {[%clk 0:00:34.9]} 59...
Re3 {[%clk 0:00:11.8]} 60. Rd2 {[%clk 0:00:29.1]} 60... Rc3+ {[%clk 0:00:12.6]}
61. Kd1 {[%clk 0:00:30.3]} 61... g4 {[%clk 0:00:13.9]} 62. Ra2 {[%clk
0:00:31.3]} 62... Rxb3 {[%clk 0:00:14.4]} 63. Rxa5 {[%clk 0:00:32.4]} 63... d3
{[%clk 0:00:15.7]} 64. Ra6+ {[%clk 0:00:32.9]} 64... Kc5 {[%clk 0:00:16.6]} 65.
h6 {[%clk 0:00:34.5]} 65... Bg5 {[%clk 0:00:15.9]} 66. Ra1 {[%clk 0:00:33.9]}
66... Bxh6 {[%clk 0:00:15.9]} 67. Ke1 {[%clk 0:00:32]} 67... Be3 {[%clk
0:00:15.5]} 68. Kf1 {[%clk 0:00:33.3]} 68... Rb2 {[%clk 0:00:16.8]} 69. Rd1
{[%clk 0:00:34.1]} 69... Kd4 {[%clk 0:00:17.8]} 70. Bg2 {[%clk 0:00:33.5]} 70...
Rf2+ {[%clk 0:00:19]} 0-1

[Event "*** Titled Tuesday 3|2 Blitz"]
[Site "Chess.com"]
[Date "2016.09.06"]
[Round "7"]
[White "Kouzari"]
[Black "yurisolo"]
[Result "0-1"]
[WhiteElo "2467"]
[BlackElo "2502"]
[TimeControl "180+2"]
[EndTime "18:26:06 PDT"]
[Termination "yurisolo won by resignation"]

1. d4 {[%clk 0:03:02]} 1... d5 {[%clk 0:03:00.3]} 2. c4 {[%clk 0:03:03.5]} 2...
e6 {[%clk 0:03:01.8]} 3. Nc3 {[%clk 0:03:04.8]} 3... c6 {[%clk 0:03:03.3]} 4.
Nf3 {[%clk 0:03:04.3]} 4... Nf6 {[%clk 0:03:04.1]} 5. Bg5 {[%clk 0:03:04.3]}
5... dxc4 {[%clk 0:03:05.5]} 6. a4 {[%clk 0:03:04.4]} 6... b5 {[%clk 0:03:02]}
7. axb5 {[%clk 0:03:00.7]} 7... cxb5 {[%clk 0:03:03.9]} 8. Nxb5 {[%clk
0:03:01.8]} 8... Qb6 {[%clk 0:03:04.9]} 9. Nc3 {[%clk 0:02:40.8]} 9... Qxb2
{[%clk 0:03:05.6]} 10. Bd2 {[%clk 0:02:40.9]} 10... Nd5 {[%clk 0:03:03.8]} 11.
Na4 {[%clk 0:02:07.6]} 11... Qb3 {[%clk 0:03:01.7]} 12. e4 {[%clk 0:02:07.3]}
12... Nb4 {[%clk 0:02:59.4]} 13. Qxb3 {[%clk 0:02:05.3]} 13... cxb3 {[%clk
0:03:01.3]} 14. Bb5+ {[%clk 0:01:31.5]} 14... Bd7 {[%clk 0:03:01.9]} 15. Bxd7+
{[%clk 0:01:32.4]} 15... Nxd7 {[%clk 0:03:03.8]} 16. Ke2 {[%clk 0:01:26.4]}
16... Rb8 {[%clk 0:02:41.9]} 17. Rab1 {[%clk 0:01:15.4]} 17... Nc6 {[%clk
0:02:12.9]} 18. Rhc1 {[%clk 0:01:09.2]} 18... Nd8 {[%clk 0:02:09]} 19. Ba5
{[%clk 0:00:55.6]} 19... Ba3 {[%clk 0:02:06.3]} 20. Rc3 {[%clk 0:00:53.7]} 20...
Bb4 {[%clk 0:01:57.1]} 21. Rcxb3 {[%clk 0:00:44.1]} 21... Bxa5 {[%clk
0:01:57.8]} 22. Rxb8 {[%clk 0:00:45.2]} 22... Nxb8 {[%clk 0:01:59.7]} 23. Rxb8
{[%clk 0:00:46]} 23... O-O {[%clk 0:01:48.7]} 24. Ne5 {[%clk 0:00:46]} 24... Bc7
{[%clk 0:01:39.2]} 25. Rc8 {[%clk 0:00:35.2]} 25... Bxe5 {[%clk 0:01:31.4]} 26.
dxe5 {[%clk 0:00:37.1]} 26... Nb7 {[%clk 0:01:29.9]} 27. Rxf8+ {[%clk
0:00:33.2]} 27... Kxf8 {[%clk 0:01:30.8]} 28. Kd3 {[%clk 0:00:34.8]} 28... Ke7
{[%clk 0:01:22.2]} 29. Kc4 {[%clk 0:00:35]} 29... Kd7 {[%clk 0:01:18.6]} 30. Kb5
{[%clk 0:00:31.7]} 30... Kc7 {[%clk 0:01:20]} 31. f4 {[%clk 0:00:28.2]} 31... h5
{[%clk 0:01:16]} 32. Nb2 {[%clk 0:00:25.4]} 32... a6+ {[%clk 0:01:15.2]} 33. Kb4
{[%clk 0:00:23.2]} 33... Kc6 {[%clk 0:01:15.6]} 34. Nc4 {[%clk 0:00:24]} 34...
a5+ {[%clk 0:01:14.6]} 35. Ka4 {[%clk 0:00:19.2]} 35... Kc5 {[%clk 0:01:15.7]}
36. Nb2 {[%clk 0:00:07.8]} 36... Kd4 {[%clk 0:01:16.6]} 37. g3 {[%clk
0:00:09.1]} 37... Kxe4 {[%clk 0:01:14.8]} 38. Kb5 {[%clk 0:00:10.7]} 38... h4
{[%clk 0:01:11.7]} 39. Nc4 {[%clk 0:00:10.7]} 39... h3 {[%clk 0:01:06.6]} 40.
Nd6+ {[%clk 0:00:10.4]} 40... Kf3 {[%clk 0:01:08]} 41. Nxb7 {[%clk 0:00:11.2]}
41... Kg2 {[%clk 0:01:09.5]} 42. Nd6 {[%clk 0:00:12.9]} 42... Kxh2 {[%clk
0:01:10.8]} 43. f5 {[%clk 0:00:11.8]} 43... Kg2 {[%clk 0:00:49.5]} 44. Nxf7
{[%clk 0:00:12.9]} 44... h2 {[%clk 0:00:50.6]} 45. fxe6 {[%clk 0:00:14.5]} 45...
h1=Q {[%clk 0:00:51.9]} 46. e7 {[%clk 0:00:16]} 46... Qb1+ {[%clk 0:00:25.1]}
47. Kc6 {[%clk 0:00:16]} 47... Qb8 {[%clk 0:00:16.9]} 48. Nd6 {[%clk 0:00:14.6]}
48... a4 {[%clk 0:00:14]} 49. e8=Q {[%clk 0:00:16]} 49... Qxe8+ {[%clk 0:00:15]}
50. Nxe8 {[%clk 0:00:17.9]} 50... a3 {[%clk 0:00:16.9]} 51. e6 {[%clk
0:00:19.8]} 51... a2 {[%clk 0:00:18.5]} 52. e7 {[%clk 0:00:19.6]} 52... a1=Q
{[%clk 0:00:20]} 53. Nxg7 {[%clk 0:00:17.8]} 53... Qf6+ {[%clk 0:00:18.3]} 54.
Kd7 {[%clk 0:00:14.9]} 54... Qxg7 {[%clk 0:00:19.3]} 55. Ke6 {[%clk 0:00:14.9]}
55... Qg6+ {[%clk 0:00:19.9]} 56. Kd7 {[%clk 0:00:14.1]} 56... Qf7 {[%clk
0:00:19]} 57. Kd8 {[%clk 0:00:11.8]} 57... Qd5+ {[%clk 0:00:19.9]} 58. Kc7
{[%clk 0:00:12.4]} 58... Qe6 {[%clk 0:00:20.6]} 59. Kd8 {[%clk 0:00:13.3]} 59...
Qd6+ {[%clk 0:00:22]} 60. Ke8 {[%clk 0:00:15]} 60... Kxg3 {[%clk 0:00:23.4]} 61.
Kf7 {[%clk 0:00:16.9]} 61... Qd7 {[%clk 0:00:22.9]} 62. Kf6 {[%clk 0:00:17.8]}
62... Qe8 {[%clk 0:00:23.4]} 0-1